Cogmind - Beta 9.6 @@@ ROGUE MODE // 2020.04.14 @ 04:55:31 Player: cptwinky Result: Destroyed by as-82688 with Assembled Maul Performance ------------- Evolutions (0) 0 Regions Visited (4) 800 Robots Destroyed (28) 140 Value Destroyed (561) 561 Prototype IDs (0) 0 Alien Tech Used (0) 0 Bonus (7) 7 TOTAL SCORE: 1508 Bonus ------- Follower Combat Kills 7 Cogmind --------- Core Integrity 0/250 Matter 275/300 Energy 250/250 System Corruption 0% Temperature Cool (0) Movement Rolling (110) Ox3 Location -9/Mines Parts ------- > --- POWER (1) -------- Ion Engine > --- PROPULSION (2) --- Wheel Wheel > --- UTILITY (2) ------ High-capacity Storage Unit High-capacity Storage Unit > --- WEAPON (2) ------- Light Assault Rifle > --- INVENTORY (20) --- Ion Engine Light Treads Light Treads Compact Wheel Improved Heat Sink High-capacity Storage Unit High-capacity Storage Unit High-capacity Matter Pod (200) Experimental Sensor Array Particle Gun Light Cannon Rocket Launcher Mining Laser Hammer Peak State ------------ > --- POWER ------------ Ion Engine > --- PROPULSION ------- Light Treads Wheel > --- UTILITY ---------- High-capacity Storage Unit High-capacity Storage Unit > --- WEAPON ----------- Light Assault Rifle Rocket Launcher > --- INVENTORY -------- Ion Engine Fission Core Light Treads Wheel Wheel Compact Wheel Improved Heat Sink High-capacity Storage Unit High-capacity Storage Unit High-capacity Matter Pod Experimental Sensor Array Particle Gun Light Assault Rifle Light Assault Rifle Light Cannon Mining Laser Hammer Proton Bomb Trap Proton Bomb Trap Proton Bomb Trap [Rating: 11] Favorites ----------- Power Ion Engine Engine Ion Engine Propulsion Wheel Treads Light Treads Wheel Wheel Utility High-capacity Storage Unit Storage High-capacity Storage Unit Weapon Light Assault Rifle Energy Gun Small Laser Ballistic Gun Light Assault Rifle Launcher Rocket Launcher Build | -11 -10 -10 -10 -9 ------- Run | Scr Mat Min Exi Min Slots Evolved . | . . . . . Power . | . . . . . Propulsion . | . . . . . Utility . | . . . . . Weapon . | . . . . . Parts Attached 35 | 7 9 10 4 5 Power 4 | 1 2 . 1 . Engine 4 | 1 2 . 1 . Core . | . . . . . Reactor . | . . . . . Propulsion 10 | 2 2 4 . 2 Treads 3 | 1 1 1 . . Leg . | . . . . . Wheel 7 | 1 1 3 . 2 Hover . | . . . . . Flight . | . . . . . Utility 7 | 2 1 1 3 . Device . | . . . . . Storage 7 | 2 1 1 3 . Processor . | . . . . . Hackware . | . . . . . Protection . | . . . . . Artifact . | . . . . . Weapon 14 | 2 4 5 . 3 Energy Gun 5 | 2 3 . . . Energy Cannon . | . . . . . Ballistic Gun 8 | . 1 5 . 2 Ballistic Cannon . | . . . . . Launcher 1 | . . . . 1 Special Weapon . | . . . . . Impact Weapon . | . . . . . Slashing Weapon . | . . . . . Piercing Weapon . | . . . . . Special Melee Weapon . | . . . . . Unidentified Prototypes . | . . . . . Parts Lost 7 | . 3 2 . 2 Power . | . . . . . Propulsion 1 | . . . . 1 Utility . | . . . . . Weapon 6 | . 3 2 . 1 Highest Loss Streak 2 | . 2 1 . 2 Average Slot Usage (%) 99 | . 99 99 100 100 Engine 14 | . 14 14 14 14 Treads 13 | . 14 13 14 14 Wheel 14 | . 14 14 14 14 Storage 28 | . 28 28 28 28 Energy Gun 8 | . 24 4 . . Ballistic Gun 19 | . 2 23 28 26 Naked Turns . | . . . . . Heaviest Build 74 | 15 44 55 71 74 Greatest Support 20 | 10 10 20 10 20 Greatest Overweight (x) 7 | 1 4 5 7 7 Average Overweight (x) 4 | . 3 4 5 6 Largest Inventory Capacity 20 | 8 14 18 20 20 Average Capacity 16 | 5 13 16 18 20 Most Carried 20 | 6 11 18 20 20 Average Carried 14 | 3 8 15 18 19 Final Capacity 20 | 8 14 18 20 20 Final Carried 20 | 6 10 18 20 14 Class Distribution -------------------- 54% | Mutant 29% | Scavenger-Mutant 15% | Hauler-Mutant Dominant Class ---------------- Mutant | -10/Materials Mutant | -10/Mines Scavenger-Mutant | -10/Exiles Hauler-Mutant | -9/Mines Resources | -11 -10 -10 -10 -9 ----------- Run | Scr Mat Min Exi Min Matter Collected 588 | 270 80 140 . 98 Remotely . | . . . . . Salvage Created 847 | 63 368 284 . 132 Parts 59 | 4 20 25 . 10 Haulers Intercepted 1 | . 1 . . . Recyclers Shooed . | . . . . . Parts Field Recycled . | . . . . . Retrieved Matter . | . . . . . Parts Self-Destructed . | . . . . . Prevented . | . . . . . Kills | -11 -10 -10 -10 -9 ------- Run | Scr Mat Min Exi Min Combat Hostiles Destroyed 26 | . 7 13 . 6 Guns 22 | . 7 13 . 2 AOE 4 | . . . . 4 Classes Destroyed 5 | 1 2 1 . 1 Hauler 1 | . 1 . . . Recycler 1 | 1 . . . . Swarmer 14 | . . 11 . 3 Grunt 11 | . 7 2 . 2 Assembled 1 | . . . . 1 Best Kill Streak 4 | 1 4 3 . 3 Combat Bots Only 4 | . 4 3 . 3 Max Kills in Single Turn 3 | 1 1 2 . 3 Gunslinging 1 | . . 1 . . Exploded 3 | . . . . 3 Melee . | . . . . . Uniques/NPCs Destroyed . | . . . . . Combat | -11 -10 -10 -10 -9 -------- Run | Scr Mat Min Exi Min Damage Taken 1199 | . 345 478 . 376 Core 261 | . 43 82 . 136 Absorbed by Shields . | . . . . . Core Remaining (%) 100 | 100 . . . . Volleys Fired 75 | 5 28 31 . 11 Largest 2 | 2 2 2 . 2 Hottest 80 | 80 80 60 . 40 Shots Fired 140 | 10 48 62 . 20 Gun 138 | 10 48 62 . 18 Cannon . | . . . . . Launcher 2 | . . . . 2 Special . | . . . . . Kinetic 66 | . . 48 . 18 Thermal 49 | 10 39 . . . Explosive 2 | . . . . 2 Electromagnetic 23 | . 9 14 . . Robot Hit Streak 9 | 4 9 5 . 2 Robot Miss Streak 2 | 1 2 2 . 2 Penetration Max . | . . . . . Secondary Targets 3 | . . 3 . . Max Gunslinging Chain 1 | . . 1 . . Shots Hit Robots 89 | 7 36 37 . 9 Core Hits 46 | 2 14 19 . 11 Critical Hits . | . . . . . Critical Kills . | . . . . . Critical Parts Destroyed . | . . . . . Melee Attacks . | . . . . . Impact . | . . . . . Slashing . | . . . . . Piercing . | . . . . . Sneak Attacks . | . . . . . Combat Hostiles . | . . . . . Follow-up Attacks . | . . . . . Damage Inflicted 1257 | 77 394 399 . 387 Guns 865 | 77 394 319 . 75 Cannons . | . . . . . Explosions 392 | . . 80 . 312 Melee . | . . . . . Ramming . | . . . . . Kinetic 291 | . . 216 . 75 Thermal 408 | 77 331 . . . Explosive 179 | . . . . 179 Electromagnetic 379 | . 63 183 . 133 Impact . | . . . . . Slashing . | . . . . . Piercing . | . . . . . Highest Corruption . | . . . . . Average Corruption . | . . . . . Corruption Purged . | . . . . . Overload Shots . | . . . . . Overflow Damage . | . . . . . Projectiles . | . . . . . Explosions . | . . . . . Melee . | . . . . . Knockbacks . | . . . . . Impact . | . . . . . Kinetic . | . . . . . Secondary . | . . . . . Self-Inflicted Damage 82 | . . 14 . 68 Shots 4 | . . 1 . 3 Rammed . | . . . . . Targets Rammed . | . . . . . Kicked . | . . . . . Crushed . | . . . . . Highest Temperature 318 | 92 318 40 . 18 Average Temperature 78 | 54 115 21 . 11 Received Heat Transfer 305 | . 195 39 . 71 Siege Activations . | . . . . . Robots Corrupted . | . . . . . Combat Hostiles . | . . . . . Parts Fried . | . . . . . Impact Corruptions . | . . . . . Robots Melted . | . . . . . Combat Hostiles . | . . . . . Parts Melted 2 | . 2 . . . Heat Transferred 925 | 175 750 . . . Parts Sabotaged . | . . . . . Parts Stolen . | . . . . . Parts Stripped . | . . . . . Power Chain Reactions . | . . . . . Missiles Intercepted . | . . . . . Alert | -11 -10 -10 -10 -9 ------- Run | Scr Mat Min Exi Min Peak Influence 319 | 5 217 319 . 120 Average Influence 138 | 1 90 190 . 88 Maximum Alert Level 1 | . 1 1 . . Low Security (%) 74 | 100 90 56 . 100 Level 1 25 | . 9 43 . . Level 2 . | . . . . . Level 3 . | . . . . . Level 4 . | . . . . . Level 5 . | . . . . . High Security . | . . . . . Max Security . | . . . . . Squads Dispatched 4 | . 4 . . . Investigation 4 | . 4 . . . Extermination . | . . . . . Reinforcement . | . . . . . Assault . | . . . . . Garrison . | . . . . . Intercept . | . . . . . Construction Impeded . | . . . . . Haulers Reinforced . | . . . . . Stealth | -11 -10 -10 -10 -9 --------- Run | Scr Mat Min Exi Min Distress Signals . | . . . . . Communications Jammed . | . . . . . Distress Signals . | . . . . . Times Spotted 51 | . 10 17 . 24 Peak Tracking Total 17 | . 4 3 . 17 Tactical Retreats 1 | . . . . 1 Traps | -11 -10 -10 -10 -9 ------- Run | Scr Mat Min Exi Min Traps Triggered 1 | . 1 . . . Indirectly . | . . . . . Trap Hack Attempts . | . . . . . Triggered . | . . . . . Disarmed . | . . . . . Reprogrammed 6 | . 6 . . . Reused 9 | . 4 2 . 3 Traps Extracted . | . . . . . Installed 5 | . . 2 . 3 Triggered 8 | . 4 3 . 1 Exploded 1 | . . . . 1 Machines | -11 -10 -10 -10 -9 ---------- Run | Scr Mat Min Exi Min Machines Disabled . | . . . . . Max in Single Turn . | . . . . . Machines Sabotaged . | . . . . . Garrisons Compromised . | . . . . . Overloaded Fab Kills . | . . . . . Fab Network Shutdowns . | . . . . . Hacking | -11 -10 -10 -10 -9 --------- Run | Scr Mat Min Exi Min Machines Accessed 6 | . 5 . 1 . Terminals 4 | . 4 . . . Fabricators . | . . . . . Repair Stations . | . . . . . Recycling Units 1 | . 1 . . . Scanalyzers . | . . . . . Garrison Access . | . . . . . Total Hacks 20 | . 19 . 1 . Successful 8 | . 7 . 1 . Failed 11 | . 11 . . . Catastrophic 1 | . 1 . . . Database Lockouts 1 | . 1 . . . Manual 14 | . 14 . . . Terminals 15 | . 15 . . . Fabricators . | . . . . . Repair Stations . | . . . . . Recycling Units 4 | . 4 . . . Scanalyzers . | . . . . . Garrison Access . | . . . . . Terminal Hacks 6 | . 5 . 1 . Record 1 | . . . 1 . Part Schematic 1 | . 1 . . . Branch Access Points 1 | . 1 . . . Reprogram Traps 2 | . 2 . . . Recall Investigation 1 | . 1 . . . Fabricator Hacks . | . . . . . Repair Station Hacks . | . . . . . Recycling Unit Hacks 1 | . 1 . . . Retrieve Components 1 | . 1 . . . Scanalyzer . | . . . . . Garrison Access Hacks . | . . . . . Unauthorized Hacks 1 | . 1 . . . Terminals . | . . . . . Fabricators . | . . . . . Repair Stations . | . . . . . Recycling Units 1 | . 1 . . . Tunnel 1 | . 1 . . . Scanalyzers . | . . . . . Garrison Access . | . . . . . Data Cores Recovered . | . . . . . Used . | . . . . . Hacking Detections 5 | . 5 . . . Full Trace Events 2 | . 2 . . . Feedback Events . | . . . . . Feedback Blocked . | . . . . . Robot Schematics Acquired . | . . . . . Robots Built . | . . . . . Matter . | . . . . . Time . | . . . . . Total Robot Build Rating . | . . . . . Part Schematics Acquired 1 | . 1 . . . Parts Built . | . . . . . Matter . | . . . . . Time . | . . . . . Total Part Build Rating . | . . . . . Parts Repaired . | . . . . . Time . | . . . . . Parts Recycled . | . . . . . Recycled Matter . | . . . . . Retrieved Matter . | . . . . . Retrieved Components 9 | . 9 . . . Parts Scanalyzed . | . . . . . Part Schematics Acquired . | . . . . . Parts Damaged . | . . . . . Bothacking | -11 -10 -10 -10 -9 ------------ Run | Scr Mat Min Exi Min Used RIF Installer . | . . . . . Robots Hacked . | . . . . . Non-combat . | . . . . . Combat . | . . . . . Robot Hacks Applied . | . . . . . Relay Couplers Released . | . . . . . Robots Rewired . | . . . . . Allies Hacked . | . . . . . Hacks Repelled . | . . . . . Allies | -11 -10 -10 -10 -9 -------- Run | Scr Mat Min Exi Min Total Allies 1 | . . 1 . . Largest Group 1 | . . 1 . . Highest-Rated Group 31 | . . 31 . . Highest-Rated Ally 31 | . . 31 . . Total Orders . | . . . . . Ally Attacks 4 | . . 4 . . Total Damage 22 | . . 22 . . Kills 1 | . . 1 . . Allies Corrupted . | . . . . . Allies Melted . | . . . . . Intel | -11 -10 -10 -10 -9 ------- Run | Scr Mat Min Exi Min Robot Analysis Total . | . . . . . Derelict Logs Recovered 3 | . . 2 . 1 Drone Launches . | . . . . . Drone Recoveries . | . . . . . Exploration | -11 -10 -10 -10 -9 ------------- Run | Scr Mat Min Exi Min Turns Passed 1728 | 68 392 774 259 235 Spaces Moved 1086 | 44 214 509 188 131 Core 2 | 2 . . . . Treads . | . . . . . Legs . | . . . . . Wheels 1084 | 42 214 509 188 131 Hover . | . . . . . Flight . | . . . . . Fastest Speed 50 | 50 90 100 130 110 Average Speed 126 | 84 117 125 133 148 Slowest Speed 150 | 90 120 130 150 150 Overloaded Moves . | . . . . . Propulsion Burnouts . | . . . . . Robots Hopped . | . . . . . Cave-ins Triggered . | . . . . . Exploration Rate (%) 39 | 3 36 76 54 30 Regions Visited 4 Branch Regions 3 Pre-discovered Areas 2 | . 1 . 1 . Known Exits Taken 1 | . 1 . . . Unknown Exits Taken 3 | 1 . 1 1 . Scrap Searched 3 | . . 2 . 1 Spaces Dug 10 | . . . . 10 Terrain Destroyed 18 | . . . . 18 Melee . | . . . . . Projectile . | . . . . . AOE 18 | . . . . 18 Actions | -11 -10 -10 -10 -9 --------- Run | Scr Mat Min Exi Min Total 1312 | 61 306 594 196 155 Wait 61 | . 45 15 . 1 Move 1082 | 43 213 508 187 131 Hop . | . . . . . Pick Up 33 | 6 8 17 2 . Fast Attach 9 | 7 2 . . . Attach 8 | . 4 2 . 2 Detach . | . . . . . Swap 18 | . 3 8 4 3 Drop 21 | . 3 11 3 4 Fire 75 | 5 28 31 . 11 Melee . | . . . . . Ram . | . . . . . Kick . | . . . . . Crush . | . . . . . Escape Stasis . | . . . . . Rewire . | . . . . . Trap 5 | . . 2 . 3 Miscellaneous . | . . . . . Route ------- -11/Scrapyard -10/Materials (discovered 2 exits: *Min x2) -10/Mines (discovered 2 exits: [*Mat] / *Exi) -10/Exiles -9/Mines History --------- Turn | Location | Event 8 | -11/Scrapyard | Discovered new exit (range 15) 69 | -11/Scrapyard | Entered Materials 114 | -10/Materials | Central database locked down 159 | -10/Materials | Identified exit to Mines 310 | -10/Materials | Build established: Mutant 461 | -10/Materials | Entered Mines 484 | -10/Mines | Found a damaged Exp. Sensor Array with a note attached 487 | -10/Mines | Found Prototype Device 522 | -10/Mines | Learned Materials emergency access door positions 651 | -10/Mines | Found a hidden stash of uninstalled traps 780 | -10/Mines | Learned 2 Materials zone layouts 884 | -10/Mines | Discovered new exit (range 8) 952 | -10/Mines | Received a Mining Laser from a helpful Derelict 1014 | -10/Mines | Received a Rocket Launcher from a helpful Derelict 1230 | -10/Mines | Deemed a non-threat by the Exiles lab entrance 1230 | -10/Mines | Discovered new exit (range 5) 1235 | -10/Mines | Entered Exiles 1244 | -10/Exiles | Build established: Scavenger-Mutant 1272 | -10/Exiles | Met 8R-AWN 1293 | -10/Exiles | Met EX-HEX 1342 | -10/Exiles | Met EX-DEC 1397 | -10/Exiles | Learned location of Zion (-6) 1480 | -10/Exiles | Discovered new exit (range 11) 1494 | -10/Exiles | Entered Mines 1498 | -9/Mines | Core integrity fell below 50% 1530 | -9/Mines | Learned 4 Materials zone layouts 1551 | -9/Mines | Met a Derelict bent on vengeance 1692 | -9/Mines | Assembled infested the area 1697 | -9/Mines | Assisted by a Guerilla fighting off Assembled 1715 | -9/Mines | Core integrity fell below 20% 1729 | -9/Mines | Destroyed by as-82688 with Assembled Maul Last Messages --------------- 01698_ E8-VCH(h): "I'll hold them off! Go on ahead or try to find another way!" 01702_ E8-VCH(h) suffers critical hit. 01703_ E8-VCH(h) destroyed. 01705_ Dropped Proton Bomb Trap. 01705_ Installed Proton Bomb Trap. 01707_ K-01 Serf destroyed. 01710_ as-02457 triggered Proton Bomb Trap. 01710_ A bubble of electromagnetic force engulfs the area. 01710_ Dropped Proton Bomb Trap. 01711_ Installed Proton Bomb Trap. 01712_ as-99344 triggered Proton Bomb Trap. 01712_ A bubble of electromagnetic force engulfs the area. 01712_ as-99344 destroyed. 01712_ as-17258 shuts down. 01713_ Dropped Rigged Fission Core. 01714_ Rigged Fission Core explodes. 01714_ Lgt. Assault Rifle destroyed. 01718_ Wheel destroyed. 01721_ Lgt. Assault Rifle severed. Map ----- +----------------------------------------------------+ | ?????????????????????????????????????????????????? | | ?????????????????????????????????????????????????? | | ?????????????????????????????????????????????????? | | ?????????????????????????????????????????????????? | | ?????????????????????????????????????????????????? | | ?????????????????????????????????????????????????? | | ?????????????????????????????????????????????????? | | ?????????????????????????????????????????????????? | | ?????????????????????????????????????????????????? | | ???????????????????????????????????????????? ????? | | ???????????????????????????????????????????? #???? | | ???????????????????????????????????????????? #??## | | ???????????????????????????????????????????? #?# | | ???????????????????????????????????????????# #? | | ???????????????????????????????????????????# #" "" | | ???????????????????????????????????????????# # "" | | ??????????????????????????????????????????## "" | | ??????????????????????????????????????????# | | ?????????????????????????????????????????## #? | | ?????????????????????????????????????????# #?? | | ?????????????????????????????????????????# %] #??? | | ????????????????????????????????????????## ! #??? | | ??????????????????????????????????###?###% ##?? | | ?????????????????????#??????????## ### ##? | | ?????????????????????# #########;a;## *% #? | | ?????????????????????# @aaaaa aaaa aa## ## #? | | ?????????????????????############;a;a#### ###%= #? | | ????????????????????????????????# # #??# #?## #? | | ????????????????????????????????####?#??# #### #? | | ??????????????????????????????????????### #? | | ?????????????????????????????##??##??######### ## | | ?????????????????????????????# ## ??#" % # | | ?????????????????????????????# ?#" " | | ??????????????????????????????# #" # | | ????????????????????????????????# #" # | | ?????????????????????????????????# # | | ?????????????????????????????????# # | | ??????????????????????????##????# #" " | | ?????????????????????????? ?? ?## # | | ?????????????????????????# #???### ???# " | | ?????????????????????????# #??????????### """"# | | ?????????????????????????# #????????????# # # ## | | ?????????# ############## #????????????# ####### | | ?????????# ! #????????????# #### | | ?????????# [ #????????????# | | ??????????########### ### #???????????## | | ????????????????????# #?# ##?????###### ## | | ???????????????????## # ####### ##? | | ??????????????????## # ###! !% ##? | | ??????????????????# [ = * = ## ## | +----------------------------------------------------+ Best States ------------- Heat Dissipation 25 Energy Generation 10 Energy Capacity 250 Matter Stores 300 Matter Capacity 300 Sight Range 16 Terrain Scan Density 10 Evasion (%) 44 Recoil Reduction 1 Item Schematics ----------------- Hcp. Storage Unit | -10/Materials | Hacked Robot Schematics ------------------ None Fabricated ------------ Nothing Alien Tech Used ----------------- None Achievements -------------- None Challenges ------------ None Game ------ Seed MatterStasisEngine Manual? 0 Play Time 00:13:53 Cumulative 485.2 hours Start 2020.04.14 @ 04:43:34 End 2020.04.14 @ 04:55:31 Sessions 1 Manual Loads 0 Difficulty Rogue Special Mode None Game No. 377 Rogue 373 Adventurer 4 Explorer 0 Win Type - Total 56 Types 48/3/1/2/2/0/0 Lore% 93 Gallery% 95 Achievement% 96 Wizard Run 0 Options --------- ASCII 0 Keyboard 0 Movement Vi Keybinds 0 Fullscreen 0 Font 16/Terminus Map View 76x50 Tactical HUD 1 Map Filters NONE Filters NONE Steam 1 RUN: b858fc1b-cb51-4894-86d7-fd68fa59efe4